bitfinex-derivatives/quotes_SOLF0:USTF0_20250923
["timestamp","ask_amount","ask_price","bid_price","bid_amount"]
[1758655802818,4.1573,216.39,216.32,4.1585]
[1758655803921,64.6609,216.42,216.3,11.8189]
[1758655804118,7.26,216.37,216.26,7.66]
[1758655804618,4.1585,216.33,216.26,7.66]
[1758655804815,11.4185,216.33,216.26,7.66]
[1758655805921,4.1587,216.32,216.26,7.66]
[1758655807213,4.159,216.3,216.26,7.66]
[1758655807418,7.26,216.29,216.22,11.8203]
[1758655808418,4.1585,216.32,216.24,7.66]
[1758655809122,8.0648569,216.38,216.24,7.66]
[1758655809326,8.0648569,216.38,216.23,64.7149]
[1758655809327,7.26,216.38,216.27,7.66]
[1758655809514,7.26,216.38,216.32,4.1583]
[1758655809818,7.26,216.38,216.32,11.8183]
[1758655810316,7.26,216.38,216.3,4.1588]
[1758655810925,7.26,216.38,216.31,4.1585]
[1758655811914,7.26,216.38,216.31,11.5385]
[1758655812719,4.1569,216.41,216.31,7.38]
[1758655813819,11.5374,216.38,216.31,7.38]
[1758655814217,7.38,216.42,216.31,7.38]
[1758655814422,4.1569,216.41,216.34,4.158]
[1758655815026,7.38,216.42,216.36,4.1577]
[1758655816625,7.38,216.42,216.34,7.38]
[1758655817223,4.1569,216.41,216.34,7.38]
[1758655818128,7.38,216.38,216.34,7.38]
[1758655818721,64.6632,216.41,216.28,7.38]
[1758655818920,7.38,216.4,216.28,7.38]
[1758655819527,4.1578,216.36,216.28,11.5392]
[1758655819814,7.38,216.37,216.28,7.38]
[1758655820220,11.5377,216.37,216.29,4.159]
[1758655820524,7.38,216.37,216.29,4.159]
[1758655821427,4.1579,216.36,216.28,7.38]
[1758655822123,4.1581,216.35,216.28,7.38]
[1758655822628,7.38,216.37,216.29,5.81874301]
[1758655822629,11.5376,216.37,216.29,5.81874301]
[1758655822827,7.38,216.37,216.29,5.81874301]
[1758655823815,4.1579,216.36,216.29,5.81874301]
[1758655824318,7.38,216.37,216.29,1.65964301]
[1758655824519,4.1583,216.34,216.29,1.65964301]
[1758655824714,7.2,216.33,216.29,9.03964301]
[1758655826321,4.1585,216.32,216.26,5.81914301]
[1758655827118,4.1585,216.32,216.26,1.65964301]
[1758655827628,7.2,216.34,216.26,1.65964301]
[1758655827830,7.2,216.34,216.27,7.38]
[1758655828826,4.1584,216.33,216.27,7.38]
[1758655829029,7.2,216.34,216.27,7.38]
[1758655830924,4.1586,216.32,216.26,9.03964301]
[1758655831125,7.2,216.33,216.24,1.65964301]
[1758655832228,64.689,216.32,216.24,1.65964301]
[1758655832428,7.2,216.31,216.24,1.65964301]
[1758655832827,7.2,216.26,216.24,1.65964301]
[1758655833032,7.2,216.29,216.21,9.03964301]
[1758655833629,64.7079,216.26,216.17,5.14498925]
[1758655833834,7.2,216.24,216.14,1.65964301]
[1758655834237,1.15667216,216.23,216.14,1.65964301]
[1758655834431,8.35667216,216.22,216.14,1.65964301]
[1758655834734,5.31747216,216.21,216.14,1.65964301]
[1758655834933,1.15667216,216.2,216.14,1.65964301]
[1758655835126,4.1608,216.21,216.14,1.65964301]
[1758655835723,4.1608,216.21,216.13,11.542]
[1758655835926,1.15671699,216.2,216.14,5.82144301]
[1758655836127,7.2,216.22,216.15,7.38]
[1758655836337,1.15672554,216.21,216.15,7.38]
[1758655836635,7.2,216.22,216.15,7.38]
[1758655836835,1.15672554,216.21,216.15,7.38]
[1758655837137,7.2,216.22,216.15,11.5416]
[1758655837333,7.2,216.22,216.17,1.65964301]
[1758655837530,7.2,216.22,216.18,7.38]
[1758655838127,7.2,216.22,216.17,1.65964301]
[1758655838128,7.2,216.25,216.17,1.65964301]
[1758655838328,1.15664568,216.24,216.17,1.65964301]
[1758655838526,1.15664568,216.23,216.17,1.65964301]
[1758655838734,7.2,216.25,216.17,1.65964301]
[1758655838936,1.15664568,216.24,216.17,1.65964301]
[1758655839138,4.1606,216.22,216.17,1.65964301]
[1758655839336,7.2,216.21,216.17,1.65964301]
[1758655839938,7.2,216.21,216.17,9.03964301]
[1758655840732,4.1601,216.24,216.18,7.38]
[1758655841831,11.3597,216.26,216.19,1.65964301]
[1758655842536,11.3597,216.26,216.2,7.38]
[1758655843026,1.65964301,216.3,216.2,7.38]
[1758655843228,1.15643296,216.29,216.22,1.65964301]
[1758655843432,7.2,216.3,216.23,7.38]
[1758655843630,1.15640067,216.29,216.23,7.38]
[1758655843834,7.2,216.3,216.23,7.38]
[1758655844035,1.15640044,216.29,216.23,7.38]
[1758655844236,115.38,216.33,216.26,7.38]
[1758655845438,8.35628944,216.32,216.2,7.38]
[1758655845641,7.2,216.32,216.22,9.03964301]
[1758655845837,4.1589,216.31,216.22,13.19994301]
[1758655846243,7.2,216.32,216.25,1.65964301]
[1758655846440,7.2,216.32,216.26,7.38]
[1758655847843,349.52,216.34,216.26,7.38]
[1758655848145,7.2,216.36,216.28,9.03964301]
[1758655848446,7.2,216.36,216.32,7.38]
[1758655848646,4.1575,216.38,216.31,1.65964301]
[1758655849134,11.3579,216.36,216.3,7.38]
[1758655849333,7.2,216.36,216.28,1.65964301]
[1758655849942,4.1581,216.35,216.28,1.65964301]
[1758655853445,4.1581,216.35,216.29,7.31]
[1758655853642,4.1576,216.37,216.31,1.65964301]
[1758655856245,4.1576,216.37,216.32,7.31]
[1758655856449,4.1576,216.37,216.31,8.96964301]
[1758655856749,4.1572,216.39,216.31,13.12824301]
[1758655856950,11.1772,216.39,216.35,7.31]
[1758655858148,7.02,216.38,216.35,7.31]
[1758655858848,4.1576,216.37,216.34,1.65964301]
[1758655859152,11.1776,216.37,216.34,1.65964301]
[1758655859352,115.22,216.41,216.31,8.96964301]
[1758655859353,7.02,216.4,216.31,8.96964301]
[1758655859652,4.1579,216.36,216.31,8.96964301]
[1758655859848,7.02,216.35,216.31,8.96964301]
[1758655860741,11.178,216.35,216.31,8.96964301]
[1758655861054,7.02,216.34,216.31,8.96964301]
[1758655861254,7.02,216.34,216.31,1.65964301]
[1758655861952,11.1783,216.34,216.31,1.65964301]
[1758655862147,71.6942,216.37,216.28,1.65964301]
[1758655862356,8.67964301,216.37,216.28,1.65964301]
[1758655862553,4.1579,216.35,216.28,1.65964301]
[1758655863254,4.1576,216.37,216.31,1.65964301]
[1758655863652,4.1576,216.37,216.31,8.96964301]
[1758655864745,4.1576,216.37,216.31,13.12834301]
[1758655865153,7.02,216.36,216.31,8.96964301]
[1758655865351,64.6697,216.39,216.31,1.65964301]
[1758655865555,7.02,216.38,216.31,1.65964301]
[1758655865756,7.02,216.32,216.28,8.96964301]
[1758655866152,66.32494301,216.4,216.28,1.65964301]
[1758655866153,71.6976,216.36,216.28,1.65964301]
[1758655866359,11.1789,216.31,216.28,1.65964301]
[1758655866558,7.02,216.31,216.28,1.65964301]
[1758655866859,4.1596,216.27,216.23,1.65964301]
[1758655867048,11.1796,216.27,216.23,1.65964301]
[1758655868052,4.16,216.25,216.23,1.65964301]
[1758655868254,7.02,216.24,216.2,1.65964301]
[1758655868655,7.02,216.24,216.2,8.96964301]
[1758655868860,7.02,216.24,216.2,1.65964301]
[1758655869871,7.02,216.24,216.18,1.65964301]
[1758655870370,4.1604,216.23,216.17,7.31]
[1758655870567,4.1604,216.23,216.17,8.96964301]
[1758655870969,7.02,216.24,216.17,8.96964301]
[1758655871375,4.1604,216.23,216.17,8.96964301]
[1758655871964,115.1,216.28,216.21,7.31]
[1758655872371,115.1,216.28,216.2,1.65964301]
[1758655872372,7.37,216.27,216.2,1.65964301]
[1758655872767,4.1597,216.26,216.2,1.65964301]
[1758655875567,7.37,216.27,216.2,1.65964301]
[1758655876170,7.37,216.27,216.2,13.26034301]
[1758655876375,11.5297,216.27,216.2,9.09964301]
[1758655876677,7.37,216.27,216.2,9.09964301]
[1758655876872,7.37,216.27,216.17,1.65964301]
[1758655877077,7.37,216.27,216.17,9.09964301]
[1758655877274,115.1,216.28,216.17,9.09964301]
[1758655877469,7.37,216.27,216.17,9.09964301]
[1758655877668,7.37,216.27,216.12,3.86754139]
[1758655877669,1.65964301,216.25,216.12,3.86754139]
[1758655877977,9.02964301,216.15,216.06,1.65964301]
[1758655878176,73.76984301,216.15,216.04,7.44]
[1758655878480,9.02964301,216.12,216.04,7.44]
[1758655879065,64.7217,216.21,216.05,1.65964301]
[1758655879269,1.65964301,216.15,216.05,1.65964301]
[1758655879777,5.82164301,216.15,216.07,4.1633]
[1758655880477,4.1621,216.14,216.05,4.1637]
[1758655880674,4.1621,216.14,216.06,1.65964301]
[1758655880874,7.37,216.14,216.06,1.65964301]
[1758655881274,7.37,216.14,216.04,9.09964301]
[1758655881475,21.50096298,216.14,216.04,9.09964301]
[1758655881879,4.1627,216.11,216.04,9.09964301]
[1758655884580,4.1622,216.13,216.04,7.44]
[1758655885783,4.1626,216.11,216.04,7.44]
[1758655885985,11.3126,216.11,216.04,7.44]
[1758655886180,7.15,216.11,216.02,2.59895461]
[1758655886376,7.15,216.11,216.0,7.0]
[1758655887988,11.3133,216.08,216.0,7.0]
[1758655889789,4.1635,216.07,216.0,7.0]
[1758655891988,4.1629,216.1,216.0,7.0]
[1758655892185,7.15,216.12,216.0,2.59895461]
[1758655892390,7.15,216.12,216.01,7.0]
[1758655893790,11.3124,216.12,216.04,4.1639]
[1758655894091,7.15,216.12,216.04,7.0]
[1758655894992,7.15,216.11,216.0,7.0]
[1758655895392,4.1629,216.1,216.01,4.1643]
[1758655895588,7.15,216.11,216.01,4.1643]
[1758655896991,11.3133,216.08,216.01,4.1643]
[1758655897195,7.15,216.08,216.0,7.0]
[1758655897992,11.3132,216.08,216.0,7.0]
[1758655898197,7.15,216.08,216.0,7.0]
[1758655899396,4.1637,216.06,216.0,7.0]
[1758655899596,11.3137,216.06,216.0,7.0]
[1758655899997,115.04,216.09,216.0,7.0]
[1758655900500,4.1631,216.09,216.01,4.1645]
[1758655901191,4.1633,216.08,216.0,7.0]
[1758655902194,126.3528,216.1,216.0,7.0]
[1758655902692,71.9084,216.09,215.94,7.0]
[1758655903597,4.1642,216.03,215.95,4.1656]
[1758655904496,4.1644,216.02,215.94,7.0]
[1758655904898,4.1644,216.02,215.94,11.1657]
[1758655905397,4.1644,216.02,215.94,7.0]
[1758655906195,11.314,216.04,215.96,4.1653]
[1758655907797,11.314,216.04,215.97,7.0]
[1758655908594,11.314,216.04,215.97,11.1651]
[1758655909400,7.15,216.04,215.98,4.1649]
[1758655910592,7.15,216.13,215.97,7.0]
[1758655910802,7.15,216.11,215.97,7.0]
[1758655911003,4.1636,216.06,215.97,7.0]
[1758655911503,4.1636,216.06,216.0,4.1646]
[1758655912097,7.15,216.13,216.01,7.0]
[1758655912296,7.15,216.13,216.03,7.0]
[1758655914897,4.1629,216.1,216.03,11.1641]
[1758655915400,4.1629,216.1,216.04,4.1638]
[1758655916106,7.15,216.13,216.03,7.0]
[1758655916107,11.3122,216.13,216.03,7.0]
[1758655916900,11.3122,216.13,216.07,7.49]
[1758655917805,7.15,216.13,216.07,11.6532]
[1758655918510,13.71491926,216.16,216.09,7.49]
[1758655918701,7.73,216.17,216.09,7.49]
[1758655918901,1.15696594,216.16,216.09,7.49]
[1758655919098,11.8914,216.17,216.09,7.49]
[1758655919309,1.15696511,216.16,216.09,7.49]
[1758655919497,7.73,216.17,216.09,10.08895461]
[1758655920709,7.73,216.17,216.09,14.25185461]
[1758655920908,7.73,216.17,216.09,10.08895461]
[1758655921311,4.1618,216.16,216.09,13.94226036]
[1758655922311,4.1613,216.18,216.1,7.49]
[1758655923812,4.1613,216.18,216.11,4.1624]
[1758655924015,8.88685291,216.17,216.1,7.49]
[1758655924211,8.88685291,216.17,216.09,3.85330575]
[1758655924414,7.73,216.17,216.09,3.85330575]
[1758655924715,7.73,216.17,216.08,3.85330575]
[1758655925015,7.73,216.17,216.08,8.01630575]
[1758655926411,4.1619,216.15,216.08,8.01630575]
[1758655928107,7.73,216.17,216.08,8.01630575]
[1758655929524,7.73,216.17,216.07,11.34330575]
[1758655929716,7.73,216.14,216.05,3.85330575]
[1758655930020,7.73,216.12,216.02,11.34330575]
[1758655930220,4.1633,216.08,216.02,11.34330575]
[1758655930522,7.73,216.09,216.02,11.34330575]
[1758655930721,4.1639,216.05,216.0,3.85330575]
[1758655931018,7.73,216.04,216.0,3.85330575]
[1758655931221,7.73,216.04,216.0,11.34330575]
[1758655931420,4.1634,216.07,216.0,11.34330575]
[1758655931821,7.73,216.08,216.01,4.1644]
[1758655932019,4.163,216.09,216.02,3.85330575]
[1758655932218,7.2,216.1,216.01,11.44330575]
[1758655932819,7.2,216.1,216.01,7.59]
[1758655933422,7.2,216.1,215.97,2.59895461]
[1758655933423,71.9626,216.08,215.99,3.85330575]
[1758655933617,71.9626,216.08,215.97,3.85330575]
[1758655934224,71.9626,216.08,215.98,3.85330575]
[1758655934418,7.2,216.08,215.98,3.85330575]
[1758655934619,7.2,216.08,215.99,7.59]
[1758655934821,7.2,216.08,216.0,3.85330575]
[1758655935829,4.1635,216.06,216.0,3.85330575]
[1758655937023,4.1635,216.06,215.99,11.44330575]
[1758655937327,4.1639,216.05,215.99,11.44330575]
[1758655937724,7.2,216.08,215.99,7.59]
[1758655938030,7.2,216.03,215.99,7.59]
[1758655938628,4.1641,216.04,215.98,11.44330575]
[1758655938930,4.1636,216.06,215.98,11.44330575]
[1758655939224,7.2,216.07,216.0,7.59]
[1758655939417,4.1637,216.06,216.0,7.59]
[1758655939622,7.2,216.07,216.0,7.59]
[1758655940431,11.3641,216.04,216.0,7.59]
[1758655940631,11.3641,216.04,215.98,11.44330575]
[1758655940632,7.2,216.03,215.98,11.44330575]
[1758655941024,7.2,216.04,215.95,11.44330575]
[1758655942533,7.2,216.04,215.95,7.59]
[1758655943034,4.1644,216.02,215.95,7.59]
[1758655944832,4.1644,216.02,215.95,11.7555]
[1758655948537,4.1644,216.02,215.96,4.1653]
[1758655948742,7.2,216.04,215.95,7.59]
[1758655949041,7.2,216.04,215.97,1.66486216]
[1758655949232,4.1638,216.05,215.98,7.47]
[1758655950538,4.1641,216.04,215.98,7.47]
[1758655950934,7.2,216.02,215.93,3.85330575]
[1758655951142,7.2,216.02,215.92,7.47]
[1758655951740,102.28,216.06,215.95,7.47]
[1758655952035,7.2,216.06,215.98,7.47]
[1758655952537,4.1639,216.05,215.98,11.635]
[1758655952939,4.164,216.04,215.98,11.635]
[1758655953235,4.164,216.04,215.95,3.85330575]
[1758655953236,1.66486216,216.04,215.95,3.85330575]
[1758655953441,7.2,216.0,215.9,11.32330575]
[1758655953937,1.66486216,215.98,215.9,7.47]
[1758655954136,1.66486216,215.98,215.9,11.32330575]
[1758655954337,1.66486216,215.98,215.9,7.47]
[1758655954938,122.64,216.0,215.9,7.47]
[1758655955141,1.66486216,215.98,215.9,7.47]
[1758655955936,4.1658,215.95,215.91,7.47]
[1758655956841,11.3658,215.95,215.91,7.47]
[1758655957641,4.1659,215.94,215.91,7.47]
[1758655958239,11.3661,215.93,215.88,11.32330575]
[1758655958436,11.3661,215.93,215.87,15.49040575]
[1758655958944,11.3661,215.93,215.87,11.32330575]
[1758655959242,4.1661,215.93,215.87,11.34579658]
[1758655960935,4.1663,215.92,215.87,11.34579658]
[1758655961140,7.2,215.95,215.87,7.47]
[1758655961545,4.1661,215.93,215.87,7.47]
[1758655962745,4.1661,215.93,215.87,11.6372]
[1758655963451,1.66486216,216.0,215.89,7.47]
[1758655963647,15.51348993,216.0,215.89,7.47]
[1758655963944,7.2,215.99,215.89,7.47]
[1758655964150,71.9903,215.99,215.89,7.47]
[1758655964447,7.2,215.96,215.89,7.47]
[1758655964646,7.2,215.96,215.88,1.66486216]
[1758655964842,7.2,215.96,215.89,7.47]
[1758655965548,7.2,215.96,215.89,9.13486216]
[1758655966249,7.2,215.96,215.89,13.30146216]
[1758655967050,4.1659,215.94,215.9,7.47]
[1758655970955,4.1659,215.94,215.89,1.66486216]
[1758655971162,4.1659,215.94,215.9,7.47]
[1758655971850,4.1651,215.98,215.92,1.66486216]
[1758655972043,110.92,216.02,215.93,7.47]
[1758655972654,4.165,215.99,215.93,11.6358]
[1758655972854,110.92,216.02,215.93,11.6358]
[1758655973744,4.1652,215.98,215.93,11.6358]
[1758655973950,4.1652,215.98,215.93,4.1658]
[1758655974145,4.1652,215.98,215.94,7.13]
[1758655974544,110.92,216.02,215.94,7.13]
[1758655975053,4.165,215.99,215.94,7.13]
[1758655975359,7.08,216.01,215.94,7.13]
[1758655975750,7.08,215.99,215.91,3.87579658]
[1758655975948,7.08,215.99,215.9,3.87579658]
[1758655976859,7.08,215.99,215.91,1.66486216]
[1758655976860,115.24,215.98,215.91,1.66486216]
[1758655977455,4.1658,215.95,215.9,15.17239658]
[1758655977661,11.2458,215.95,215.9,12.67065874]
[1758655977954,4.166,215.94,215.9,1.66486216]
[1758655978160,122.32,215.97,215.9,5.54065874]
[1758655978560,4.1662,215.93,215.9,5.54065874]
[1758655978950,4.1662,215.93,215.9,12.67065874]
[1758655979263,4.1662,215.93,215.91,7.13]
[1758655979661,4.1662,215.93,215.9,5.54065874]
[1758655979859,4.1662,215.93,215.9,12.67065874]
[1758655980063,4.1658,215.95,215.9,11.00579658]
[1758655980263,122.42,215.97,215.91,7.13]
[1758655980563,122.42,215.97,215.9,3.87579658]
[1758655981258,4.1656,215.96,215.9,3.87579658]
[1758655981464,110.96,215.97,215.91,7.13]
[1758655981663,7.08,215.97,215.91,7.13]
[1758655981863,7.08,215.97,215.91,11.00579658]
[1758655982065,4.1656,215.96,215.91,3.87579658]
[1758655982259,4.1656,215.96,215.92,7.13]
[1758655983463,4.1656,215.96,215.92,3.87579658]
[1758655983759,4.1656,215.96,215.93,7.13]
[1758655984662,7.08,216.02,215.93,12.67065874]
[1758655984863,7.08,216.02,215.95,3.87579658]
[1758655985058,7.08,216.02,215.96,1.66486216]
[1758655985562,7.08,216.02,215.96,5.54065874]
[1758655985768,4.1646,216.01,215.96,5.54065874]
[1758655985970,4.1646,216.01,215.97,7.13]
[1758655986462,4.1646,216.01,215.96,5.54065874]
[1758655986871,4.1646,216.01,215.97,7.13]
[1758655987071,4.1646,216.01,215.96,5.54065874]
[1758655987272,4.1646,216.01,215.97,7.13]
[1758655988178,4.1648,216.0,215.97,7.13]
[1758655988672,11.2448,216.0,215.96,5.54065874]
[1758655989075,11.2448,216.0,215.96,12.67065874]
[1758655991173,4.165,215.99,215.96,12.67065874]
[1758655991467,115.1,216.02,215.95,3.87579658]
[1758655991673,8.23769501,216.01,215.94,3.87579658]
[1758655991868,7.08,216.01,215.94,3.87579658]
[1758655992977,4.1656,215.96,215.94,3.87579658]
[1758655993177,181.54496216,216.02,215.93,3.87579658]
[1758655993178,7.51,215.95,215.93,3.87579658]
[1758655993470,115.1,215.97,215.94,7.32]
[1758655993879,115.1,215.97,215.93,3.87579658]
[1758655994269,7.51,215.96,215.93,3.87579658]
[1758655994873,1.66486216,216.0,215.93,3.87579658]
[1758655995076,123.76777607,215.99,215.93,3.87579658]
[1758655995269,122.61,215.99,215.93,3.87579658]
[1758655995467,9.17486216,216.02,215.94,7.32]
[1758655995777,7.51,216.02,215.96,12.86065874]
[1758655996477,7.51,216.06,215.98,11.19579658]
[1758655996677,116.25753435,216.05,215.99,3.87579658]
[1758655996878,1.15753435,216.04,216.0,7.32]
[1758655997078,7.51,216.03,215.99,3.87579658]
[1758655997273,4.1641,216.04,215.99,3.87579658]
[1758655997274,72.2839,216.04,215.99,3.87579658]
[1758655997477,7.51,216.01,215.95,3.87579658]
[1758655997676,115.1,216.0,215.94,3.87579658]
[1758655997974,122.81,216.06,215.98,3.87579658]
[1758655998176,122.81,216.06,215.97,3.87579658]
[1758655998478,11.6743,216.03,215.97,3.87579658]
[1758655998679,7.51,216.03,215.98,3.87579658]
[1758655998879,7.51,216.05,215.98,3.87579658]
[1758655999477,350.14,216.08,215.99,12.86065874]
[1758655999677,466.1,216.08,216.0,3.87579658]
[1758656000172,72.2743,216.07,216.0,3.87579658]
[1758656000379,64.7673,216.06,215.98,3.87579658]
[1758656000579,7.51,216.05,215.98,3.87579658]
[1758656001886,4.1647,216.01,215.98,3.87579658]
[1758656002780,7.51,216.05,215.98,3.87579658]
[1758656003087,116.1,216.05,215.99,7.32]
[1758656003290,116.1,216.05,215.99,11.21349117]
[1758656003481,4.1641,216.04,215.99,11.21349117]
[1758656003682,4.1641,216.04,216.0,7.67]
[1758656004186,11.3641,216.04,216.0,7.67]
[1758656004379,11.3643,216.03,215.98,3.89349117]
[1758656004582,11.3643,216.03,215.99,7.67]
[1758656005281,4.1643,216.03,215.99,7.67]
[1758656007787,3.12437008,216.12,215.99,7.67]
[1758656007979,7.2,216.1,216.01,11.56349117]
[1758656008184,7.2,216.1,216.02,8.05769117]
[1758656008387,7.2,216.1,216.03,7.67]
[1758656008888,11.363,216.1,216.04,4.1638]
[1758656009186,4.163,216.1,216.04,4.1638]
[1758656009390,4.1625,216.12,216.04,3.89349117]
[1758656009589,4.1625,216.12,216.05,7.67]
[1758656009988,7.2,216.14,216.07,7.67]
[1758656010193,123.2,216.14,216.07,7.67]
[1758656010491,4.1626,216.11,216.04,15.72739117]
[1758656010684,4.1626,216.11,216.04,11.8339]
[1758656011489,7.2,216.11,216.0,11.56349117]
[1758656011788,7.2,216.11,216.01,3.89349117]
[1758656011989,7.2,216.11,216.0,11.56349117]
[1758656012392,4.1637,216.06,216.0,11.56349117]
[1758656014091,7.2,216.08,216.0,7.67]
[1758656014592,4.1644,216.02,215.99,3.89349117]
[1758656014790,4.1644,216.02,215.97,3.89349117]
[1758656015092,4.1644,216.02,215.98,7.67]
[1758656015287,4.1644,216.02,215.99,7.67]
[1758656016393,4.1644,216.02,215.98,3.89349117]
[1758656016595,11.3647,216.01,215.97,3.89349117]
[1758656017096,11.3647,216.01,215.98,7.67]
[1758656017097,4.1647,216.01,215.98,7.67]
[1758656017997,11.3647,216.01,215.97,11.56349117]
[1758656018795,7.2,216.0,215.96,3.89349117]
[1758656018993,7.2,215.99,215.96,3.89349117]
[1758656019193,7.2,216.01,215.95,3.89349117]
[1758656019494,7.2,216.01,215.94,11.56349117]
[1758656021096,115.78,216.0,215.94,11.56349117]
[1758656021300,7.2,216.01,215.94,11.56349117]
[1758656021595,11.3647,216.01,215.94,11.56349117]
[1758656021785,120.5,216.01,215.95,3.89349117]
[1758656022490,7.2,216.01,215.95,3.89349117]
[1758656022798,21.55,216.08,215.98,11.56349117]
[1758656023005,115.78,216.06,215.98,11.56349117]
[1758656024096,122.98,216.06,215.98,11.56349117]
[1758656025902,4.1641,216.04,215.98,11.56349117]
[1758656026291,25.7131,216.08,216.02,4.1641]
[1758656027197,25.7131,216.08,216.01,7.67]
[1758656027497,25.7131,216.08,216.01,11.56349117]
[1758656027697,25.7131,216.08,216.02,4.1642]
[1758656028697,21.55,216.08,216.03,4.1638]
[1758656028904,21.55,216.08,216.02,11.56349117]
[1758656029702,21.55,216.08,216.02,15.72759117]
[1758656029901,21.55,216.08,216.02,11.56349117]
[1758656032200,21.55,216.08,216.04,7.67]
[1758656032394,28.75,216.08,216.04,7.67]
[1758656033406,7.06,216.07,216.03,7.73]
[1758656034696,7.06,216.07,216.02,3.89349117]
[1758656034898,7.06,216.07,216.01,3.89349117]
[1758656035295,4.1637,216.06,216.01,3.89349117]
[1758656035700,11.2237,216.06,216.02,7.73]
[1758656036703,7.06,216.05,216.02,7.73]
[1758656038507,4.1637,216.06,216.02,7.73]
[1758656038803,4.1637,216.06,216.01,3.89349117]
[1758656039007,4.1637,216.06,216.02,7.73]
[1758656039308,4.1637,216.06,216.02,11.62349117]
[1758656039606,11.2237,216.06,216.02,11.62349117]
[1758656039806,7.06,216.06,216.02,3.89101131]
[1758656040102,28.61,216.08,216.02,3.89101131]
[1758656042010,32.7733,216.08,216.02,3.89101131]
[1758656043304,7.06,216.07,216.02,3.89101131]
[1758656043510,7.06,216.07,216.01,3.89101131]
[1758656044209,7.06,216.04,216.02,3.89101131]
[1758656044707,21.55,216.08,216.02,11.62101131]
[1758656045906,25.7133,216.08,216.02,15.78521131]
[1758656046711,21.55,216.08,216.04,7.73]
[1758656046899,21.55,216.08,216.03,8.05501131]
[1758656047101,28.61,216.08,216.04,7.73]
[1758656047312,7.06,216.07,216.04,7.73]
[1758656047610,21.55,216.08,216.04,7.73]
[1758656047816,28.61,216.08,216.04,7.73]
[1758656048016,7.06,216.07,216.04,7.73]
[1758656049615,7.06,216.07,216.03,11.62101131]
[1758656050015,7.06,216.07,216.02,3.89101131]
[1758656050509,21.55,216.08,216.02,3.89101131]
[1758656050814,28.61,216.08,216.02,3.89101131]
[1758656051013,21.55,216.08,216.01,3.89101131]
[1758656051218,21.55,216.08,216.0,3.89101131]
[1758656051219,7.06,216.07,216.0,3.89101131]
[1758656052515,7.06,216.07,216.01,7.63]
[1758656052708,7.06,216.07,216.01,11.52101131]
[1758656053110,4.1636,216.06,216.01,11.52101131]
[1758656053310,7.06,216.07,216.01,11.52101131]
[1758656054815,4.1639,216.05,216.02,7.63]
[1758656055215,4.164,216.04,216.02,7.63]
[1758656055417,4.164,216.04,216.02,11.52101131]
[1758656055913,4.164,216.04,215.97,2.60057975]
[1758656055914,7.65,216.01,216.0,3.89101131]
[1758656056103,7.65,216.01,215.99,3.89101131]
[1758656056304,7.65,216.01,216.0,3.89101131]
[1758656056507,64.7826,216.01,215.97,3.89101131]
[1758656056707,64.7857,216.0,215.96,3.89101131]
[1758656056915,4.1655,215.96,215.95,3.89101131]
[1758656057612,11.8155,215.96,215.95,3.89101131]
[1758656057812,4.1655,215.96,215.95,3.89101131]
[1758656058317,4.1655,215.96,215.94,3.89101131]
[1758656058516,4.1655,215.96,215.95,3.89101131]